[Event "*** Titled Tuesday Blitz"]
[Site "Chess.com"]
[Date "2019.12.03"]
[Round "4"]
[White "VeraNebolsina"]
[Black "BlueWizzard"]
[Result "0-1"]
[WhiteElo "2382"]
[BlackElo "2740"]
[TimeControl "180+2"]
[EndTime "13:52:48 PST"]
[Termination "BlueWizzard won by resignation"]

1. e4 {[%clk 0:03:01.9]} 1... a6 {[%clk 0:03:01.9]} 2. d4 {[%clk 0:03:01.4]}
2... g6 {[%clk 0:03:03.3]} 3. Nf3 {[%clk 0:03:01.3]} 3... b5 {[%clk 0:03:04.8]}
4. a4 {[%clk 0:02:58.2]} 4... Bb7 {[%clk 0:03:05.8]} 5. axb5 {[%clk 0:02:51.2]}
5... axb5 {[%clk 0:03:07.7]} 6. Rxa8 {[%clk 0:02:48.5]} 6... Bxa8 {[%clk
0:03:09.6]} 7. d5 {[%clk 0:02:46.6]} 7... c6 {[%clk 0:03:10.1]} 8. c4 {[%clk
0:02:23.2]} 8... bxc4 {[%clk 0:03:06.4]} 9. Bxc4 {[%clk 0:02:23]} 9... Nf6
{[%clk 0:03:07.9]} 10. Nc3 {[%clk 0:02:02.8]} 10... Bg7 {[%clk 0:03:08.5]} 11.
d6 {[%clk 0:01:53]} 11... O-O {[%clk 0:03:00.6]} 12. O-O {[%clk 0:01:50.2]}
12... Ne8 {[%clk 0:02:55.6]} 13. Bf4 {[%clk 0:01:37.1]} 13... exd6 {[%clk
0:02:50.6]} 14. Bxd6 {[%clk 0:01:33.2]} 14... Nxd6 {[%clk 0:02:51.5]} 15. Qxd6
{[%clk 0:01:33.6]} 15... Qf6 {[%clk 0:02:46]} 16. Qxf6 {[%clk 0:01:26.1]} 16...
Bxf6 {[%clk 0:02:47.9]} 17. e5 {[%clk 0:01:27.3]} 17... Be7 {[%clk 0:02:43.2]}
18. Ra1 {[%clk 0:01:27.2]} 18... Bb7 {[%clk 0:02:44.3]} 19. Ra7 {[%clk
0:01:27.2]} 19... Bc8 {[%clk 0:02:44.8]} 20. Ne4 {[%clk 0:01:20.7]} 20... c5
{[%clk 0:02:38.2]} 21. Bd5 {[%clk 0:01:05.7]} 21... Na6 {[%clk 0:02:31.4]} 22.
Nfg5 {[%clk 0:01:01.1]} 22... Kg7 {[%clk 0:02:23.5]} 23. f4 {[%clk 0:00:50.6]}
23... Nb4 {[%clk 0:02:01.2]} 24. Bc4 {[%clk 0:00:48.4]} 24... h6 {[%clk
0:02:02.3]} 25. Nf3 {[%clk 0:00:48.5]} 25... Nc6 {[%clk 0:01:54.9]} 26. Ra8
{[%clk 0:00:42.6]} 26... Bb7 {[%clk 0:01:53.7]} 27. Rxf8 {[%clk 0:00:40.4]}
27... Bxf8 {[%clk 0:01:55.6]} 28. Nfd2 {[%clk 0:00:41]} 28... g5 {[%clk
0:01:53.8]} 29. g3 {[%clk 0:00:41.3]} 29... Be7 {[%clk 0:01:54.2]} 30. Kf2
{[%clk 0:00:41.5]} 30... Nd4 {[%clk 0:01:55.3]} 31. Nd6 {[%clk 0:00:23.7]} 31...
Bxd6 {[%clk 0:01:52.3]} 32. exd6 {[%clk 0:00:25.6]} 32... Nf5 {[%clk 0:01:53.8]}
33. fxg5 {[%clk 0:00:23]} 33... hxg5 {[%clk 0:01:51]} 34. Bb5 {[%clk 0:00:24.1]}
34... Nxd6 {[%clk 0:01:46.2]} 35. Bxd7 {[%clk 0:00:25.1]} 35... Kf6 {[%clk
0:01:48]} 36. Ke3 {[%clk 0:00:23.6]} 36... Ke7 {[%clk 0:01:42.6]} 37. Bg4 {[%clk
0:00:22.4]} 37... f5 {[%clk 0:01:43.5]} 38. Be2 {[%clk 0:00:23.6]} 38... Kf6
{[%clk 0:01:43]} 39. h4 {[%clk 0:00:24.7]} 39... f4+ {[%clk 0:01:43.5]} 40. gxf4
{[%clk 0:00:24.9]} 40... gxh4 {[%clk 0:01:44.7]} 41. Nf3 {[%clk 0:00:25]} 41...
Nf5+ {[%clk 0:01:33]} 42. Kf2 {[%clk 0:00:25.8]} 42... h3 {[%clk 0:01:34.9]} 43.
Bf1 {[%clk 0:00:24.4]} 43... Nd4 {[%clk 0:01:22]} 44. Nh2 {[%clk 0:00:21]} 44...
Bc8 {[%clk 0:01:21.9]} 45. Kg3 {[%clk 0:00:21.4]} 45... Nf5+ {[%clk 0:01:23.5]}
46. Kf2 {[%clk 0:00:19.8]} 46... Nd6 {[%clk 0:01:24.8]} 47. Kg3 {[%clk
0:00:19.9]} 47... Ne4+ {[%clk 0:01:26]} 48. Kf3 {[%clk 0:00:18.7]} 48... Nd2+
{[%clk 0:01:25.4]} 49. Kf2 {[%clk 0:00:19.5]} 49... Nxf1 {[%clk 0:01:25.2]} 50.
Kxf1 {[%clk 0:00:20.7]} 50... Kf5 {[%clk 0:01:26.6]} 51. Kf2 {[%clk 0:00:20.4]}
51... Kxf4 {[%clk 0:01:27.9]} 52. Nf1 {[%clk 0:00:20.4]} 52... Be6 {[%clk
0:01:24]} 0-1

[Event "*** Titled Tuesday Blitz"]
[Site "Chess.com"]
[Date "2019.12.03"]
[Round "4"]
[White "aa175"]
[Black "PawnEatingZombie"]
[Result "1-0"]
[WhiteElo "2336"]
[BlackElo "2122"]
[TimeControl "180+2"]
[EndTime "13:52:56 PST"]
[Termination "aa175 won by resignation"]

1. d4 {[%clk 0:03:00.9]} 1... d5 {[%clk 0:03:00.4]} 2. Nf3 {[%clk 0:03:02.1]}
2... e6 {[%clk 0:03:01.1]} 3. Bf4 {[%clk 0:03:03.1]} 3... Bd6 {[%clk 0:03:00.9]}
4. Bg3 {[%clk 0:03:04.4]} 4... Nf6 {[%clk 0:03:00.6]} 5. e3 {[%clk 0:03:05.7]}
5... c5 {[%clk 0:03:01.7]} 6. Nbd2 {[%clk 0:03:04.4]} 6... Qc7 {[%clk
0:03:02.6]} 7. c3 {[%clk 0:03:05.4]} 7... Nbd7 {[%clk 0:03:01.4]} 8. dxc5 {[%clk
0:02:53.3]} 8... Qxc5 {[%clk 0:02:59.4]} 9. Bxd6 {[%clk 0:02:55.2]} 9... Qxd6
{[%clk 0:03:00.3]} 10. Bd3 {[%clk 0:02:54.2]} 10... b6 {[%clk 0:02:52.9]} 11. a4
{[%clk 0:02:50.9]} 11... a6 {[%clk 0:02:50.8]} 12. O-O {[%clk 0:02:50.7]} 12...
Bb7 {[%clk 0:02:51.8]} 13. Re1 {[%clk 0:02:50]} 13... O-O {[%clk 0:02:49]} 14.
e4 {[%clk 0:02:50.2]} 14... dxe4 {[%clk 0:02:21.4]} 15. Nxe4 {[%clk 0:02:52.1]}
15... Qc7 {[%clk 0:02:22.4]} 16. Nxf6+ {[%clk 0:02:45.7]} 16... Nxf6 {[%clk
0:02:23]} 17. Qe2 {[%clk 0:02:45.9]} 17... Rfd8 {[%clk 0:02:20.2]} 18. Nd4
{[%clk 0:02:35.5]} 18... h6 {[%clk 0:02:12.9]} 19. Bc2 {[%clk 0:02:14.7]} 19...
Rd5 {[%clk 0:02:05]} 20. Bb3 {[%clk 0:02:10.5]} 20... Rg5 {[%clk 0:02:05.2]} 21.
f3 {[%clk 0:02:08.5]} 21... Nd5 {[%clk 0:01:44.2]} 22. Bxd5 {[%clk 0:02:03.1]}
22... Bxd5 {[%clk 0:01:43.9]} 23. Qf2 {[%clk 0:01:57.6]} 23... Bb7 {[%clk
0:01:39]} 24. Re2 {[%clk 0:01:53.8]} 24... Rd5 {[%clk 0:01:39.8]} 25. Nc2 {[%clk
0:01:51.2]} 25... Rad8 {[%clk 0:01:36.3]} 26. Rae1 {[%clk 0:01:49.7]} 26... R5d7
{[%clk 0:01:16.6]} 27. Nd4 {[%clk 0:01:38]} 27... Qc4 {[%clk 0:01:13]} 28. Qg3
{[%clk 0:01:30.9]} 28... Qxa4 {[%clk 0:01:03.3]} 29. Qf4 {[%clk 0:01:17.8]}
29... Qa5 {[%clk 0:00:48.1]} 30. Re5 {[%clk 0:00:58.7]} 30... Qa2 {[%clk
0:00:46.1]} 31. R1e2 {[%clk 0:00:41.7]} 31... Bd5 {[%clk 0:00:42.7]} 32. h3
{[%clk 0:00:34.3]} 32... Qb1+ {[%clk 0:00:36.1]} 33. Kh2 {[%clk 0:00:34.8]}
33... b5 {[%clk 0:00:34]} 34. Rh5 {[%clk 0:00:28.5]} 34... Qg6 {[%clk
0:00:32.6]} 35. Rhe5 {[%clk 0:00:25.4]} 35... Bc4 {[%clk 0:00:33.4]} 36. Re1
{[%clk 0:00:24.1]} 36... Rd5 {[%clk 0:00:27.3]} 37. Nc6 {[%clk 0:00:24.9]} 37...
R8d7 {[%clk 0:00:18]} 38. Rxd5 {[%clk 0:00:21.5]} 38... Bxd5 {[%clk 0:00:18.9]}
39. Ne5 {[%clk 0:00:22.6]} 1-0

[Event "*** Titled Tuesday Blitz"]
[Site "Chess.com"]
[Date "2019.12.03"]
[Round "4"]
[White "oskariot"]
[Black "pedromartinez91"]
[Result "0-1"]
[WhiteElo "2684"]
[BlackElo "2526"]
[TimeControl "180+2"]
[EndTime "13:52:59 PST"]
[Termination "pedromartinez91 won by checkmate"]

1. e4 {[%clk 0:02:44.2]} 1... e6 {[%clk 0:03:00.9]} 2. d4 {[%clk 0:02:45]} 2...
d5 {[%clk 0:03:02.5]} 3. Nd2 {[%clk 0:02:46.8]} 3... Nf6 {[%clk 0:03:03.4]} 4.
e5 {[%clk 0:02:47.7]} 4... Ne4 {[%clk 0:03:03.9]} 5. f4 {[%clk 0:02:49.4]} 5...
Qh4+ {[%clk 0:03:04.4]} 6. Ke2 {[%clk 0:02:45.5]} 6... Qf2+ {[%clk 0:03:04.4]}
7. Kd3 {[%clk 0:02:46]} 7... Nc6 {[%clk 0:01:14.5]} 8. c3 {[%clk 0:02:38.3]}
8... Qxf4 {[%clk 0:01:15.1]} 9. Ndf3 {[%clk 0:02:35]} 9... Qf5 {[%clk
0:00:50.5]} 10. Ke2 {[%clk 0:02:24.3]} 10... f6 {[%clk 0:00:50.4]} 11. exf6
{[%clk 0:02:15.7]} 11... gxf6 {[%clk 0:00:50.9]} 12. Be3 {[%clk 0:02:14.4]}
12... Bd7 {[%clk 0:00:43.8]} 13. Ke1 {[%clk 0:02:06.6]} 13... O-O-O {[%clk
0:00:37.2]} 14. Bd3 {[%clk 0:02:07.8]} 14... e5 {[%clk 0:00:35.5]} 15. dxe5
{[%clk 0:02:04.2]} 15... Nxe5 {[%clk 0:00:32.3]} 16. Nxe5 {[%clk 0:02:05.4]}
16... fxe5 {[%clk 0:00:31.6]} 17. Qe2 {[%clk 0:02:01.4]} 17... Qe6 {[%clk
0:00:32.4]} 18. Bxe4 {[%clk 0:01:49.7]} 18... dxe4 {[%clk 0:00:34.3]} 19. Nh3
{[%clk 0:01:51.1]} 19... Rg8 {[%clk 0:00:26]} 20. Rg1 {[%clk 0:00:56.4]} 20...
Be7 {[%clk 0:00:24.6]} 21. Nf2 {[%clk 0:00:53.9]} 21... Qd5 {[%clk 0:00:19.1]}
22. Qc2 {[%clk 0:00:39.1]} 22... Bc6 {[%clk 0:00:16]} 23. b3 {[%clk 0:00:36.8]}
23... Qf7 {[%clk 0:00:14.1]} 24. Rd1 {[%clk 0:00:30.6]} 24... h5 {[%clk
0:00:14.8]} 25. Rxd8+ {[%clk 0:00:27]} 25... Rxd8 {[%clk 0:00:11]} 26. Ke2
{[%clk 0:00:28.3]} 26... Qg6 {[%clk 0:00:04.6]} 27. c4 {[%clk 0:00:18.5]} 27...
Bb4 {[%clk 0:00:03.5]} 28. Rd1 {[%clk 0:00:15.5]} 28... Rxd1 {[%clk 0:00:04]}
29. Qxd1 {[%clk 0:00:15.8]} 29... Qxg2 {[%clk 0:00:05.6]} 30. Qc1 {[%clk
0:00:12.2]} 30... Qf3+ {[%clk 0:00:06.9]} 31. Kf1 {[%clk 0:00:13.5]} 31... Bd7
{[%clk 0:00:07.9]} 32. Kg1 {[%clk 0:00:10.5]} 32... h4 {[%clk 0:00:09.3]} 33. h3
{[%clk 0:00:11.2]} 33... Qg3+ {[%clk 0:00:09.5]} 34. Kf1 {[%clk 0:00:12.3]}
34... Bxh3+ {[%clk 0:00:10.4]} 35. Nxh3 {[%clk 0:00:14.2]} 35... Qxh3+ {[%clk
0:00:12.3]} 36. Ke2 {[%clk 0:00:16.1]} 36... Qf3# {[%clk 0:00:13.5]} 0-1

[Event "*** Titled Tuesday Blitz"]
[Site "Chess.com"]
[Date "2019.12.03"]
[Round "4"]
[White "francyIM"]
[Black "Radzio1987"]
[Result "1-0"]
[WhiteElo "2600"]
[BlackElo "2856"]
[TimeControl "180+2"]
[EndTime "13:53:11 PST"]
[Termination "francyIM won by checkmate"]

1. d4 {[%clk 0:03:01.9]} 1... Nf6 {[%clk 0:03:00.4]} 2. c4 {[%clk 0:03:02.8]}
2... e6 {[%clk 0:02:59.2]} 3. Nf3 {[%clk 0:03:04]} 3... b6 {[%clk 0:02:59]} 4.
a3 {[%clk 0:03:03.6]} 4... Bb7 {[%clk 0:02:59.8]} 5. Nc3 {[%clk 0:03:05.2]} 5...
d5 {[%clk 0:03:01]} 6. Bf4 {[%clk 0:03:05.8]} 6... Bd6 {[%clk 0:02:59.9]} 7. Bg3
{[%clk 0:03:05]} 7... O-O {[%clk 0:02:56.9]} 8. e3 {[%clk 0:03:05.7]} 8... dxc4
{[%clk 0:02:57.8]} 9. Bxc4 {[%clk 0:03:06.3]} 9... Nbd7 {[%clk 0:02:58.8]} 10.
Qe2 {[%clk 0:03:05.7]} 10... Ne4 {[%clk 0:02:51.8]} 11. O-O {[%clk 0:03:05.3]}
11... Nxc3 {[%clk 0:02:37.5]} 12. bxc3 {[%clk 0:03:05.6]} 12... Nf6 {[%clk
0:02:31.9]} 13. Nd2 {[%clk 0:03:02.3]} 13... c5 {[%clk 0:02:25.2]} 14. a4 {[%clk
0:02:59.9]} 14... Bxg3 {[%clk 0:02:16.3]} 15. hxg3 {[%clk 0:02:59.8]} 15... Qc7
{[%clk 0:02:17.2]} 16. a5 {[%clk 0:02:54.8]} 16... bxa5 {[%clk 0:02:09.6]} 17.
Bd3 {[%clk 0:02:51.8]} 17... e5 {[%clk 0:02:01.7]} 18. dxe5 {[%clk 0:02:38.7]}
18... Qxe5 {[%clk 0:02:02.4]} 19. Nc4 {[%clk 0:02:36.9]} 19... Qd5 {[%clk
0:02:01.1]} 20. f3 {[%clk 0:02:36.9]} 20... Rad8 {[%clk 0:01:54.2]} 21. Rfd1
{[%clk 0:02:36.9]} 21... Qg5 {[%clk 0:01:52.7]} 22. Qf2 {[%clk 0:02:29]} 22...
Ba6 {[%clk 0:01:49.6]} 23. Bf1 {[%clk 0:02:20.2]} 23... Rxd1 {[%clk 0:01:45.2]}
24. Rxd1 {[%clk 0:02:20.3]} 24... a4 {[%clk 0:01:46.3]} 25. Ra1 {[%clk
0:02:16.9]} 25... Bb5 {[%clk 0:01:46.8]} 26. e4 {[%clk 0:02:17]} 26... Rd8
{[%clk 0:01:34.8]} 27. Ne3 {[%clk 0:02:14.5]} 27... Bxf1 {[%clk 0:01:32.9]} 28.
Nxf1 {[%clk 0:02:16.4]} 28... Qe5 {[%clk 0:01:29.8]} 29. Qc2 {[%clk 0:02:14.5]}
29... h5 {[%clk 0:01:15]} 30. Rxa4 {[%clk 0:02:14.3]} 30... Rd7 {[%clk
0:01:14.2]} 31. Ra5 {[%clk 0:02:11.2]} 31... Qc7 {[%clk 0:01:13.2]} 32. Ra1
{[%clk 0:02:08.7]} 32... Qd6 {[%clk 0:01:12.5]} 33. Qf2 {[%clk 0:02:07.6]} 33...
Qe5 {[%clk 0:01:10.2]} 34. Ra5 {[%clk 0:02:02.3]} 34... Qxc3 {[%clk 0:01:10.1]}
35. Rxc5 {[%clk 0:02:02.7]} 35... Qa1 {[%clk 0:01:08.2]} 36. Rc8+ {[%clk
0:02:00.8]} 36... Kh7 {[%clk 0:01:09.2]} 37. Ra8 {[%clk 0:01:59]} 37... Rd1
{[%clk 0:01:08]} 38. e5 {[%clk 0:01:39.4]} 38... Nd5 {[%clk 0:01:08]} 39. Rd8
{[%clk 0:01:24.8]} 39... a5 {[%clk 0:01:00.1]} 40. g4 {[%clk 0:01:19.1]} 40...
a4 {[%clk 0:00:21.8]} 41. gxh5 {[%clk 0:01:19.5]} 41... Qb1 {[%clk 0:00:18.2]}
42. h6 {[%clk 0:01:18.5]} 42... gxh6 {[%clk 0:00:18.8]} 43. e6 {[%clk
0:01:17.6]} 43... fxe6 {[%clk 0:00:16]} 44. Rd7+ {[%clk 0:01:18.3]} 44... Kh8
{[%clk 0:00:17.3]} 45. Kh2 {[%clk 0:00:57.7]} 45... Qb8+ {[%clk 0:00:13.8]} 46.
Ng3 {[%clk 0:00:56.2]} 46... a3 {[%clk 0:00:06.5]} 47. Qc2 {[%clk 0:00:54.9]}
47... Qb1 {[%clk 0:00:03.5]} 48. Qc8# {[%clk 0:00:55.1]} 1-0

[Event "*** Titled Tuesday Blitz"]
[Site "Chess.com"]
[Date "2019.12.03"]
[Round "4"]
[White "davigator"]
[Black "Region_07"]
[Result "1-0"]
[WhiteElo "2314"]
[BlackElo "2363"]
[TimeControl "180+2"]
[EndTime "13:53:14 PST"]
[Termination "davigator won on time"]

1. e4 {[%clk 0:03:01.9]} 1... Nc6 {[%clk 0:02:59.6]} 2. Bb5 {[%clk 0:03:01.3]}
2... Nd4 {[%clk 0:02:58.4]} 3. Bc4 {[%clk 0:03:00.5]} 3... e6 {[%clk 0:02:58.4]}
4. c3 {[%clk 0:03:01.2]} 4... Nc6 {[%clk 0:02:59.2]} 5. d4 {[%clk 0:03:01.5]}
5... d5 {[%clk 0:02:56.8]} 6. exd5 {[%clk 0:03:02.2]} 6... exd5 {[%clk
0:02:58.7]} 7. Bd3 {[%clk 0:03:01.6]} 7... Nf6 {[%clk 0:03:00.2]} 8. Nf3 {[%clk
0:03:02.4]} 8... Bd6 {[%clk 0:03:01.2]} 9. O-O {[%clk 0:03:03.8]} 9... O-O
{[%clk 0:03:01.9]} 10. Bg5 {[%clk 0:03:04.4]} 10... Bg4 {[%clk 0:03:01.4]} 11.
Nbd2 {[%clk 0:03:04.8]} 11... Re8 {[%clk 0:02:59.6]} 12. Qc2 {[%clk 0:03:05.3]}
12... h6 {[%clk 0:02:58.8]} 13. Bh4 {[%clk 0:03:06.1]} 13... Bxf3 {[%clk
0:02:50.7]} 14. Nxf3 {[%clk 0:03:06.3]} 14... Be7 {[%clk 0:02:51.9]} 15. Bg3
{[%clk 0:03:06.1]} 15... Bd6 {[%clk 0:02:49.1]} 16. Bh4 {[%clk 0:03:05.9]} 16...
Be7 {[%clk 0:02:35.5]} 17. Rae1 {[%clk 0:03:05.6]} 17... Nd7 {[%clk 0:02:32.3]}
18. Bg3 {[%clk 0:03:03.7]} 18... Bd6 {[%clk 0:02:30.4]} 19. Bxd6 {[%clk
0:03:03.5]} 19... cxd6 {[%clk 0:02:29.9]} 20. Qb3 {[%clk 0:03:03.5]} 20... Nb6
{[%clk 0:02:26.4]} 21. a4 {[%clk 0:03:03.1]} 21... Na5 {[%clk 0:02:25.3]} 22.
Qa2 {[%clk 0:03:03.7]} 22... Qc7 {[%clk 0:02:21.7]} 23. Bb5 {[%clk 0:03:03.1]}
23... Rxe1 {[%clk 0:02:18.6]} 24. Rxe1 {[%clk 0:03:03.5]} 24... a6 {[%clk
0:02:19.9]} 25. Bf1 {[%clk 0:03:00.1]} 25... Qd7 {[%clk 0:01:55.2]} 26. b4
{[%clk 0:02:59.8]} 26... Nc6 {[%clk 0:01:52.1]} 27. a5 {[%clk 0:02:58.5]} 27...
Nc4 {[%clk 0:01:47.3]} 28. Bxc4 {[%clk 0:02:58.3]} 28... dxc4 {[%clk 0:01:49.2]}
29. Qxc4 {[%clk 0:02:59.7]} 29... Re8 {[%clk 0:01:46.3]} 30. h3 {[%clk
0:02:56.4]} 30... Rxe1+ {[%clk 0:01:44.7]} 31. Nxe1 {[%clk 0:02:57]} 31... Qf5
{[%clk 0:01:42.5]} 32. Nf3 {[%clk 0:02:57.2]} 32... g5 {[%clk 0:01:16.8]} 33.
Qe2 {[%clk 0:02:51.8]} 33... Kg7 {[%clk 0:01:15.9]} 34. Qd1 {[%clk 0:02:46.4]}
34... Qf4 {[%clk 0:01:14.2]} 35. Qd2 {[%clk 0:02:44.7]} 35... Qf5 {[%clk
0:01:12.4]} 36. d5 {[%clk 0:02:42.5]} 36... Ne5 {[%clk 0:00:57.3]} 37. Qd4
{[%clk 0:02:41.3]} 37... f6 {[%clk 0:00:53.3]} 38. Nd2 {[%clk 0:02:40.4]} 38...
Qc2 {[%clk 0:00:47.9]} 39. Ne4 {[%clk 0:02:39]} 39... Qc1+ {[%clk 0:00:48.7]}
40. Kh2 {[%clk 0:02:35.3]} 40... Qf4+ {[%clk 0:00:49.6]} 41. g3 {[%clk
0:02:33.4]} 41... Qc1 {[%clk 0:00:30.6]} 42. Kg2 {[%clk 0:02:27.6]} 42... Qc2
{[%clk 0:00:28.8]} 43. Nxd6 {[%clk 0:02:26.2]} 43... Qe2 {[%clk 0:00:27.1]} 44.
Qe4 {[%clk 0:02:22.3]} 44... Qd2 {[%clk 0:00:24.2]} 45. Nf5+ {[%clk 0:02:22.6]}
45... Kf8 {[%clk 0:00:22.1]} 46. c4 {[%clk 0:02:22.9]} 46... h5 {[%clk
0:00:13.6]} 47. c5 {[%clk 0:02:19.8]} 47... Kg8 {[%clk 0:00:09.8]} 48. d6 {[%clk
0:02:19.3]} 48... Kf7 {[%clk 0:00:10.9]} 49. Qxb7+ {[%clk 0:02:17.6]} 49... Kg6
{[%clk 0:00:11.4]} 50. Qe4 {[%clk 0:02:18.7]} 50... Kf7 {[%clk 0:00:12.1]} 51.
Ne3 {[%clk 0:02:19.3]} 51... Nd3 {[%clk 0:00:12.2]} 52. Qe7+ {[%clk 0:02:14.5]}
52... Kg6 {[%clk 0:00:11.2]} 53. Qe4+ {[%clk 0:02:15.6]} 53... Kf7 {[%clk
0:00:11.9]} 54. Qd5+ {[%clk 0:02:09.3]} 54... Kf8 {[%clk 0:00:09.1]} 55. Qf5
{[%clk 0:02:06.6]} 55... Ne1+ {[%clk 0:00:08.9]} 56. Kf1 {[%clk 0:02:07.1]}
56... Nd3 {[%clk 0:00:05.9]} 57. Qxf6+ {[%clk 0:02:07.7]} 57... Kg8 {[%clk
0:00:07.4]} 58. Qxg5+ {[%clk 0:02:06.6]} 58... Kf7 {[%clk 0:00:06.7]} 59. Qxh5+
{[%clk 0:02:06.8]} 59... Kg8 {[%clk 0:00:06.9]} 60. Qe2 {[%clk 0:02:07.5]} 60...
Qc1+ {[%clk 0:00:06.1]} 61. Kg2 {[%clk 0:02:08.3]} 61... Ne1+ {[%clk 0:00:06.7]}
62. Kh2 {[%clk 0:02:09.1]} 1-0

[Event "*** Titled Tuesday Blitz"]
[Site "Chess.com"]
[Date "2019.12.03"]
[Round "4"]
[White "TigranLPetrosyan"]
[Black "cool4chess"]
[Result "0-1"]
[WhiteElo "2877"]
[BlackElo "2609"]
[TimeControl "180+2"]
[EndTime "13:53:23 PST"]
[Termination "cool4chess won by resignation"]

1. Nf3 {[%clk 0:03:01.9]} 1... d5 {[%clk 0:03:00.6]} 2. g3 {[%clk 0:03:03.8]}
2... Bg4 {[%clk 0:03:02.3]} 3. Bg2 {[%clk 0:03:03.2]} 3... c6 {[%clk 0:03:03.7]}
4. c4 {[%clk 0:03:03.6]} 4... dxc4 {[%clk 0:03:04.1]} 5. Ne5 {[%clk 0:03:02.8]}
5... Be6 {[%clk 0:02:55.9]} 6. Qc2 {[%clk 0:03:02.4]} 6... g6 {[%clk 0:02:51.3]}
7. Nxc4 {[%clk 0:02:54]} 7... Bg7 {[%clk 0:02:51.6]} 8. O-O {[%clk 0:02:54.8]}
8... Nf6 {[%clk 0:02:50.8]} 9. b3 {[%clk 0:02:53]} 9... O-O {[%clk 0:02:49.4]}
10. Bb2 {[%clk 0:02:54.2]} 10... Nd5 {[%clk 0:02:45.6]} 11. Bxg7 {[%clk
0:02:53.8]} 11... Kxg7 {[%clk 0:02:47.5]} 12. d4 {[%clk 0:02:48.1]} 12... f6
{[%clk 0:02:39.3]} 13. Rd1 {[%clk 0:02:47.2]} 13... Bf7 {[%clk 0:02:29.6]} 14.
a3 {[%clk 0:02:46.2]} 14... Nd7 {[%clk 0:02:30]} 15. b4 {[%clk 0:02:47.2]} 15...
N7b6 {[%clk 0:02:27.3]} 16. Na5 {[%clk 0:02:48.3]} 16... Qd7 {[%clk 0:02:27]}
17. e4 {[%clk 0:02:47.5]} 17... Nc7 {[%clk 0:02:28.1]} 18. Nxb7 {[%clk
0:02:48.1]} 18... Nb5 {[%clk 0:02:23.8]} 19. Nc5 {[%clk 0:02:49.1]} 19... Qd6
{[%clk 0:02:10.6]} 20. Qd3 {[%clk 0:02:44.9]} 20... Rad8 {[%clk 0:02:04.5]} 21.
Nc3 {[%clk 0:01:15.5]} 21... Qxd4 {[%clk 0:02:01.1]} 22. Qxd4 {[%clk 0:01:14.8]}
22... Nxd4 {[%clk 0:02:00.4]} 23. e5 {[%clk 0:01:11.5]} 23... fxe5 {[%clk
0:01:57.2]} 24. Bxc6 {[%clk 0:01:11.6]} 24... Nxc6 {[%clk 0:01:55.9]} 25. Nb5
{[%clk 0:01:11.2]} 25... Bc4 {[%clk 0:01:47.3]} 26. Nc7 {[%clk 0:01:10.3]} 26...
Rxd1+ {[%clk 0:01:42.9]} 27. Rxd1 {[%clk 0:01:10.2]} 27... Rc8 {[%clk
0:01:41.1]} 28. N7a6 {[%clk 0:00:58.6]} 28... Nd4 {[%clk 0:01:41.5]} 29. f4
{[%clk 0:00:47.7]} 29... Bxa6 {[%clk 0:01:36.8]} 30. Nxa6 {[%clk 0:00:49.6]}
30... Rc2 {[%clk 0:01:29.6]} 31. Rd3 {[%clk 0:00:50.1]} 31... Nc4 {[%clk
0:01:26.9]} 32. Nc5 {[%clk 0:00:48.2]} 32... Nd2 {[%clk 0:01:21.1]} 33. Kf2
{[%clk 0:00:45.9]} 33... Ne4+ {[%clk 0:01:20.5]} 34. Ke1 {[%clk 0:00:42]} 34...
Rc1+ {[%clk 0:01:17]} 35. Rd1 {[%clk 0:00:42.5]} 35... Nc2+ {[%clk 0:01:15.2]}
36. Ke2 {[%clk 0:00:41.6]} 36... Rxd1 {[%clk 0:00:55.4]} 37. Kxd1 {[%clk
0:00:43.5]} 37... Nxc5 {[%clk 0:00:56.6]} 38. Kxc2 {[%clk 0:00:43.2]} 38... Nd7
{[%clk 0:00:24.5]} 39. fxe5 {[%clk 0:00:42.4]} 39... Nxe5 {[%clk 0:00:26.4]} 40.
a4 {[%clk 0:00:42.9]} 40... Kf6 {[%clk 0:00:27.6]} 41. Kc3 {[%clk 0:00:39.4]}
41... Nc6 {[%clk 0:00:28]} 42. Kc4 {[%clk 0:00:40.2]} 42... e5 {[%clk
0:00:28.7]} 43. b5 {[%clk 0:00:41]} 43... Na5+ {[%clk 0:00:29.3]} 44. Kb4 {[%clk
0:00:41.9]} 44... Nb7 {[%clk 0:00:26.9]} 45. a5 {[%clk 0:00:43.3]} 45... Nd6
{[%clk 0:00:27.5]} 46. b6 {[%clk 0:00:36.6]} 46... axb6 {[%clk 0:00:28.1]} 47.
axb6 {[%clk 0:00:38.5]} 47... e4 {[%clk 0:00:26.8]} 48. Kc3 {[%clk 0:00:36.5]}
48... Ke5 {[%clk 0:00:26.5]} 49. h4 {[%clk 0:00:38]} 49... Kd5 {[%clk
0:00:27.2]} 50. Kc2 {[%clk 0:00:39]} 50... Kc6 {[%clk 0:00:28.4]} 0-1